fUST/lending_fUST_20250612
["ID","MTS","AMOUNT","RATE_DAILY","PERIOD"]
[365430711,1749666644029,-152.255243,0.00023013,7]
[365430713,1749666644039,-151.0,0.00023013,7]
[365430716,1749666644049,-151.0,0.00023013,7]
[365430717,1749666644057,-500.0,0.00023013,2]
[365430719,1749666644066,-460.0,0.00023013,4]
[365430722,1749666644076,-1147.24,0.00023013,4]
[365430724,1749666644085,-460.0,0.00023013,4]
[365430725,1749666644094,-938.38,0.00023013,4]
[365430728,1749666644104,-460.0,0.00023013,4]
[365430730,1749666644113,-1361.44,0.00023013,4]
[365430732,1749666644125,-543.16,0.00023013,4]
[365430734,1749666644135,-460.0,0.00023013,4]
[365430736,1749666644144,-460.0,0.00023013,4]
[365430738,1749666644154,-460.0,0.00023013,4]
[365430740,1749666644163,-1251.39,0.00023013,4]
[365430742,1749666644173,-2237.62,0.00023013,4]
[365430744,1749666644182,-1184.58,0.00023013,4]
[365430746,1749666644193,-1168.69,0.00023013,4]
[365430748,1749666644203,-808.9,0.00023013,4]
[365430750,1749666644212,-572.55,0.00023013,2]
[365430752,1749666644221,-947.4432767,0.00023014,2]
[365430754,1749666644231,-153.0,0.00023014,2]
[365430756,1749666644242,-165.0,0.00023014,7]
[365430759,1749666644253,-756.86,0.00023017,4]
[365430761,1749666644262,-3000.0,0.0002302,2]
[365430763,1749666644272,-3000.0,0.0002303,2]
[365430765,1749666644281,-3000.0,0.0002304,2]
[365430767,1749666644291,-600.0,0.0002304,2]
[365430769,1749666644300,-158.77989778,0.00023041,2]
[365430771,1749666644309,-215.0738,0.00023042,2]
[365430773,1749666644319,-3000.0,0.0002305,2]
[365430775,1749666644329,-166.0,0.00023051,3]
[365430776,1749666644341,-166.0,0.00023051,3]
[365430779,1749666644351,-166.0,0.00023051,3]
[365430781,1749666644360,-317.0,0.00023051,3]
[365430783,1749666644370,-314.0017448,0.00023051,3]
[365430785,1749666644379,-1745.0,0.00023051,3]
[365430787,1749666644388,-504.05556208,0.00023051,3]
[365430788,1749666644398,-166.0,0.00023051,3]
[365430791,1749666644409,-166.0,0.00023051,3]
[365430793,1749666644419,-166.0,0.00023051,3]
[365430795,1749666644428,-3000.0,0.0002306,2]
[365430797,1749666644437,-1500.0,0.00023068,2]
[365430799,1749666644451,-374.36726089,0.00023068,2]
[365430801,1749666644460,-500.0,0.00023068,2]
[365430803,1749666644470,-1500.0,0.00023068,2]
[365430805,1749666644479,-3000.0,0.0002307,2]
[365430807,1749666644489,-305.7,0.0002307,6]
[365430809,1749666644504,-3000.0,0.0002308,2]
[365430811,1749666644523,-151.0,0.0002308,7]
[365430813,1749666644542,-167.913368,0.0002308,7]
[365430815,1749666644561,-167.913365,0.0002308,7]
[365430817,1749666644581,-3000.0,0.0002309,2]
[365430819,1749666644590,-284.868136,0.0002309,7]
[365430821,1749666644600,-284.868136,0.0002309,7]
[365430823,1749666644609,-3000.0,0.000231,2]
[365430825,1749666644618,-883.16629982,0.000231,2]
[365430827,1749666644627,-151.0,0.00023108,7]
[365430829,1749666644637,-151.0,0.00023108,7]
[365430831,1749666644648,-528.930879,0.00023108,7]
[365430833,1749666644658,-528.930879,0.00023108,7]
[365430835,1749666644668,-405.79377,0.00023108,7]
[365430837,1749666644677,-405.793764,0.00023108,7]
[365430839,1749666644687,-3000.0,0.0002311,2]
[365430841,1749666644700,-270.683971,0.0002311,7]
[365430843,1749666644709,-270.683971,0.0002311,7]
[365430845,1749666644718,-211.343556,0.0002311,7]
[365430848,1749666644728,-211.343556,0.0002311,7]
[365430850,1749666644737,-153.536195,0.0002311,7]
[365430852,1749666644747,-159.232136,0.0002311,7]
[365430854,1749666644757,-159.232136,0.0002311,7]
[365430856,1749666644766,-527.380506,0.0002311,7]
[365430858,1749666644776,-527.380506,0.0002311,7]
[365430860,1749666644785,-1283.108096,0.0002311,7]
[365430862,1749666644795,-208.943659,0.0002311,7]
[365430864,1749666644805,-208.943659,0.0002311,7]
[365430866,1749666644814,-151.0,0.0002311,7]
[365430868,1749666644823,-205.732765,0.0002311,7]
[365430870,1749666644833,-178.241321,0.0002311,7]
[365430872,1749666644843,-178.241321,0.0002311,7]
[365430874,1749666644852,-153.870603,0.0002311,7]
[365430876,1749666644862,-153.870603,0.0002311,7]
[365430878,1749666644872,-151.0,0.00023117,7]
[365430879,1749666644881,-756.86,0.00023117,5]
[365430882,1749666644891,-3000.0,0.0002312,2]
[365430884,1749666644901,-173.061753,0.0002312,7]
[365430886,1749666644910,-173.061757,0.0002312,7]
[365430898,1749666645025,-231.951183,0.0002312,7]
[365430900,1749666645036,-231.951178,0.0002312,7]
[365430903,1749666645046,-2426.2830571,0.0002312,2]
[365430905,1749666645056,-3000.0,0.0002313,2]
[365430907,1749666645066,-453.575662,0.0002313,7]
[365430908,1749666645075,-453.575662,0.0002313,7]
[365430910,1749666645084,-3000.0,0.0002314,2]
[365430912,1749666645094,-160.0,0.0002314,5]
[365430915,1749666645104,-53620.21792515,0.00023145,2]
[365430917,1749666645114,-3000.0,0.0002315,2]
[365430919,1749666645123,-151.0,0.0002315,7]
[365430921,1749666645132,-3000.0,0.0002316,2]
[365430923,1749666645142,-3000.0,0.0002317,2]
[365430925,1749666645151,-3000.0,0.0002318,2]
[365430927,1749666645161,-3000.0,0.0002319,2]
[365430929,1749666645169,-284.868136,0.00023199,7]
[365430931,1749666645179,-284.868129,0.00023199,7]
[365430933,1749666645188,-2000.0,0.000232,3]
[365430935,1749666645199,-151.0,0.000232,7]
[365430937,1749666645208,-151.0,0.000232,7]
[365430939,1749666645217,-151.0,0.000232,7]
[365430941,1749666645227,-151.0,0.000232,7]
[365430943,1749666645236,-160.0,0.000232,3]
[365430945,1749666645246,-151.0,0.000232,7]
[365430947,1749666645255,-151.0,0.000232,7]
[365430949,1749666645264,-160.0,0.000232,3]
[365430951,1749666645273,-3786.55,0.000232,7]
[365430953,1749666645283,-151.0,0.000232,7]
[365430955,1749666645292,-3000.0,0.000232,2]
[365430957,1749666645302,-151.0,0.000232,7]
[365430959,1749666645311,-152.255243,0.000232,7]
[365430961,1749666645325,-152.255243,0.000232,7]
[365430963,1749666645335,-152.255243,0.000232,7]
[365430965,1749666645343,-152.255243,0.000232,7]
[365430967,1749666645352,-270.683971,0.000232,7]
[365430969,1749666645363,-270.683971,0.000232,7]
[365430971,1749666645372,-151.0,0.000232,7]
[365430973,1749666645382,-453.575662,0.000232,7]
[365430975,1749666645391,-453.575662,0.000232,7]
[365430977,1749666645401,-151.0,0.000232,7]
[365430979,1749666645409,-151.0,0.000232,7]
[365430981,1749666645419,-151.0,0.000232,7]
[365430983,1749666645428,-180.121797,0.000232,7]
[365430985,1749666645439,-211.343556,0.000232,7]
[365430987,1749666645451,-211.343556,0.000232,7]
[365430989,1749666645460,-153.536195,0.000232,7]
[365430991,1749666645469,-159.232136,0.000232,7]
[365430992,1749666645479,-159.232136,0.000232,7]
[365430994,1749666645489,-528.930879,0.000232,7]
[365430995,1749666645498,-528.930879,0.000232,7]
[365430996,1749666645508,-527.380506,0.000232,7]
[365430997,1749666645517,-527.380506,0.000232,7]
[365430998,1749666645527,-1283.108096,0.000232,7]
[365430999,1749666645536,-208.943659,0.000232,7]
[365431000,1749666645546,-208.943659,0.000232,7]
[365431001,1749666645556,-236.754522,0.000232,7]
[365431002,1749666645565,-205.732765,0.000232,7]
[365431003,1749666645574,-178.241321,0.000232,7]
[365431004,1749666645584,-178.24132,0.000232,7]
[365431005,1749666645593,-153.870603,0.000232,7]
[365431006,1749666645603,-153.870603,0.000232,7]
[365431007,1749666645612,-3000.0,0.0002321,2]
[365431008,1749666645621,-756.86,0.00023217,3]
[365431009,1749666645631,-3000.0,0.0002322,2]
[365431010,1749666645641,-305.7,0.00023229,6]
[365431011,1749666645651,-3000.0,0.0002323,2]
[365431012,1749666645661,-158.77989778,0.00023233,2]
[365431013,1749666645671,-3000.0,0.0002324,2]
[365431015,1749666645681,-3000.0,0.0002325,2]
[365431017,1749666645692,-270.683971,0.0002325,7]
[365431019,1749666645702,-270.683965,0.0002325,7]
[365431021,1749666645712,-185.465816,0.0002325,7]
[365431023,1749666645722,-453.575662,0.0002325,7]
[365431025,1749666645732,-453.575662,0.0002325,7]
[365431027,1749666645742,-211.343556,0.0002325,7]
[365431029,1749666645751,-211.343546,0.0002325,7]
[365431031,1749666645761,-153.5362,0.0002325,7]
[365431032,1749666645771,-159.232136,0.0002325,7]
[365431035,1749666645782,-159.232136,0.0002325,7]
[365431037,1749666645791,-528.930879,0.0002325,7]
[365431039,1749666645801,-528.930871,0.0002325,7]
[365431041,1749666645812,-527.380506,0.0002325,7]
[365431043,1749666645821,-527.380506,0.0002325,7]
[365431045,1749666645830,-1283.10809,0.0002325,7]
[365431047,1749666645840,-208.943659,0.0002325,7]
[365431049,1749666645850,-208.943661,0.0002325,7]
[365431051,1749666645859,-205.732765,0.0002325,7]
[365431053,1749666645869,-3000.0,0.0002326,2]
[365431055,1749666645878,-151.0,0.0002327,7]
[365431057,1749666645888,-3000.0,0.0002327,2]
[365431059,1749666645897,-3000.0,0.0002328,2]
[365431062,1749666645907,-600.0,0.0002328,2]
[365431064,1749666645917,-460.0,0.00023285,4]
[365431066,1749666645926,-545.34,0.00023285,4]
[365431067,1749666645935,-1507.18,0.00023285,4]
[365431069,1749666645947,-460.0,0.00023285,4]
[365431072,1749666645958,-173.32,0.00023286,2]
[365431074,1749666645968,-153.870603,0.00023287,7]
[365431076,1749666645978,-153.870601,0.00023287,7]
[365431077,1749666645987,-460.0,0.00023287,4]
[365431080,1749666645997,-1147.24,0.00023287,4]
[365431081,1749666646007,-460.0,0.00023287,4]
[365431083,1749666646016,-938.38,0.00023287,4]
[365431085,1749666646025,-460.0,0.00023287,4]
[365431087,1749666646035,-1361.44,0.00023287,4]
[365431089,1749666646044,-460.0,0.00023287,4]
[365431092,1749666646054,-460.0,0.00023287,4]
[365431093,1749666646063,-460.0,0.00023287,4]
[365431095,1749666646073,-1251.39,0.00023287,4]
[365431097,1749666646082,-2237.62,0.00023287,4]
[365431099,1749666646091,-1184.58,0.00023287,4]
[365431101,1749666646101,-1168.69,0.00023287,4]
[365431104,1749666646110,-808.9,0.00023287,4]
[365431106,1749666646119,-572.55,0.00023287,2]
[365431108,1749666646129,-3000.0,0.00023288,2]
[365431110,1749666646138,-3000.0,0.0002329,2]
[365431111,1749666646147,-161.016394,0.000233,7]
[365431113,1749666646156,-3000.0,0.000233,2]
[365431115,1749666646165,-577.7507,0.000233,2]
[365431117,1749666646174,-151.0,0.0002331,7]
[365431119,1749666646183,-3000.0,0.0002331,2]
[365431121,1749666646192,-278.594813,0.00023315,7]
[365431123,1749666646202,-5000.0,0.00023317,2]
[365431125,1749666646211,-756.86,0.00023317,3]
[365431127,1749666646221,-3000.0,0.0002332,2]
[365431129,1749666646231,-1344.561654,0.0002332,5]
[365431131,1749666646240,-151.0,0.00023328,7]
[365431133,1749666646249,-151.0,0.00023328,7]
[365431135,1749666646258,-500.0,0.00023328,9]
[365431137,1749666646268,-3000.0,0.0002333,2]
[365431139,1749666646277,-407471.92319368,0.00023333,2]
[365431142,1749666646293,-1856.0,0.00023333,2]
[365431166,1749666646515,-329.23556674,0.00021889,2]
[365431179,1749666646627,-170.76443326,0.00021889,2]
[365431181,1749666646638,-500.0,0.00021889,2]
[365431183,1749666646647,-500.0,0.00021889,2]
[365431185,1749666646656,-644.48799881,0.00021889,2]
[365431187,1749666646666,-500.0,0.00021889,2]
[365431189,1749666646675,-500.0,0.00021889,2]
[365431191,1749666646684,-500.0,0.00021889,2]
[365431193,1749666646694,-172.3981802,0.00021889,2]
[365431195,1749666646703,-500.0,0.00021889,2]
[365431197,1749666646712,-500.0,0.00021889,2]
[365431199,1749666646722,-500.0,0.00021889,2]
[365431201,1749666646730,-408.06919887,0.00021889,2]
[365431203,1749666646740,-500.0,0.00021889,2]
[365431205,1749666646750,-500.0,0.00021889,2]
[365431207,1749666646759,-500.0,0.00021889,2]
[365431209,1749666646768,-500.0,0.00021889,2]
[365431210,1749666646777,-316.49525861,0.00021889,2]
[365431212,1749666646787,-500.0,0.00021889,2]
[365431214,1749666646796,-500.0,0.00021889,2]
[365431216,1749666646806,-500.0,0.00021889,2]
[365431218,1749666646815,-500.0,0.00021889,2]
[365431220,1749666646824,-500.0,0.00021889,2]
[365431222,1749666646833,-500.0,0.00021889,2]
[365431224,1749666646842,-500.0,0.00021889,2]
[365431226,1749666646851,-500.0,0.00021889,2]
[365431228,1749666646860,-500.0,0.00021889,2]
[365431230,1749666646870,-500.0,0.00021889,2]
[365431232,1749666646879,-435.6649286,0.00021889,2]
[365431234,1749666646888,-500.0,0.00021889,2]
[365431236,1749666646897,-500.0,0.00021889,2]
[365431238,1749666646906,-500.0,0.00021889,2]
[365431240,1749666646915,-500.0,0.00021889,2]
[365431242,1749666646924,-500.0,0.00021889,2]
[365431244,1749666646934,-500.0,0.00022192,2]
[365431246,1749666646945,-500.0,0.00022192,2]
[365431248,1749666646954,-188.1952526,0.00022192,2]
[365431250,1749666646963,-500.0,0.00022192,2]
[365431252,1749666646973,-500.0,0.00022192,2]
[365431254,1749666646982,-500.0,0.00022192,2]
[365431256,1749666646991,-500.0,0.00022192,2]
[365431258,1749666647001,-500.0,0.00022192,2]
[365431260,1749666647010,-500.0,0.00022192,2]
[365431262,1749666647020,-500.0,0.00022192,2]
[365431264,1749666647029,-500.0,0.00022192,2]
[365431266,1749666647039,-500.0,0.00022192,2]
[365431269,1749666647048,-79826.89680845,0.00023333,2]
[365432473,1749666716107,10010.9964,0.00024983,60]
[365432561,1749667832727,-5000.0,0.00018776,6]
[365432563,1749667832740,-359.73020325,0.00019157,2]
[365432565,1749667832750,-2553.9838559,0.00019399,2]
[365432567,1749667832760,-1200.0,0.00019769,2]
[365432569,1749667832771,-1590.32711933,0.0001977,2]
[365432571,1749667832780,-300.0,0.00019818,2]
[365432573,1749667832790,-300.0,0.00019818,2]
[365432575,1749667832799,-300.0,0.00019818,2]
[365432577,1749667832810,-300.0,0.00019818,2]
[365432579,1749667832819,-531.60443293,0.00019819,2]
[365432580,1749667832829,-300.0,0.00019917,2]
[365432582,1749667832839,-1136.52613931,0.00019919,2]
[365432584,1749667832848,-204.1152749,0.00019919,2]
[365432586,1749667832857,-1295.23165583,0.000202,2]
[365432588,1749667832867,-1295.23165573,0.000202,2]
[365432590,1749667832876,-1295.23165573,0.00020245,2]
[365432592,1749667832885,-1295.23165573,0.00020417,3]
[365432594,1749667832894,-531.6044329,0.00020537,2]
[365432596,1749667832903,-1295.23165573,0.0002059,3]
[365432597,1749667832913,-467.43603672,0.00020758,2]
[365432599,1749667832922,-1295.23165573,0.00020762,3]
[365432601,1749667832932,-1295.23165573,0.00020934,4]
[365432603,1749667832942,-489.01580521,0.00021048,2]
[365432604,1749667832954,-502.83499785,0.00021095,4]
[365432605,1749667832963,-460.0,0.00021095,4]
[365432607,1749667832973,-521.29586767,0.00021095,4]
[365432609,1749667832983,-460.0,0.00021095,4]
[365432611,1749667832993,-460.0,0.00021095,4]
[365432613,1749667833003,-460.0,0.00021095,4]
[365432614,1749667833012,-460.0,0.00021095,4]
[365432616,1749667833021,-500.0,0.00021095,4]
[365432618,1749667833032,-586.49,0.00021095,4]
[365432620,1749667833042,-460.0,0.00021095,4]
[365432622,1749667833052,-460.0,0.00021095,4]
[365432623,1749667833061,-460.0,0.00021095,4]
[365432625,1749667833071,-460.0,0.00021095,4]
[365432627,1749667833081,-1004.79,0.00021095,4]
[365432629,1749667833094,-460.0,0.00021095,4]
[365432631,1749667833104,-904.27,0.00021095,4]
[365432633,1749667833114,-460.0,0.00021095,4]
[365432635,1749667833124,-460.0,0.00021095,4]
[365432637,1749667833134,-460.0,0.00021095,4]
[365432638,1749667833144,-537.08039243,0.00021095,4]
[365432640,1749667833153,-460.0,0.00021095,4]
[365432643,1749667833164,-460.0,0.00021095,4]
[365432645,1749667833175,-460.0,0.00021095,4]
[365432647,1749667833185,-782.12,0.00021095,4]
[365432649,1749667833196,-1429.66,0.00021095,4]
[365432651,1749667833206,-848.01,0.00021095,4]
[365432652,1749667833216,-460.0,0.00021095,4]
[365432653,1749667833226,-460.0,0.00021095,2]
[365432654,1749667833236,-460.0,0.00021095,4]
[365432655,1749667833246,-460.0,0.00021095,4]
[365432656,1749667833256,-505.56,0.00021095,4]
[365432657,1749667833265,-460.0,0.00021095,4]
[365432658,1749667833275,-717.02,0.00021095,4]
[365432659,1749667833285,-738.95,0.000211,2]
[365432660,1749667833294,-1295.23165573,0.00021107,4]
[365432661,1749667833304,-1554.0,0.00021206,2]
[365432662,1749667833314,-448.35723286,0.00021233,2]
[365432663,1749667833323,-727.37672916,0.00021241,2]
[365432664,1749667833333,-531.6044329,0.00021254,2]
[365432665,1749667833343,-1295.23165573,0.00021279,5]
[365432666,1749667833353,-160.0,0.00021299,2]
[365432667,1749667833362,-204.53612188,0.00021369,4]
[365432668,1749667833372,-540.0,0.00021369,4]
[365432669,1749667833382,-460.0,0.00021369,4]
[365432670,1749667833392,-586.49,0.00021369,4]
[365432671,1749667833402,-460.0,0.00021369,4]
[365432672,1749667833412,-460.0,0.00021369,4]
[365432673,1749667833421,-460.0,0.00021369,4]
[365432674,1749667833431,-1004.79,0.00021369,4]
[365432675,1749667833441,-460.0,0.00021369,4]
[365432676,1749667833455,-904.27,0.00021369,4]
[365432677,1749667833465,-460.0,0.00021369,4]
[365432678,1749667833475,-460.0,0.00021369,4]
[365432679,1749667833485,-460.0,0.00021369,4]
[365432680,1749667833495,-460.0,0.00021369,4]
[365432681,1749667833505,-460.0,0.00021369,4]
[365432682,1749667833514,-782.12,0.00021369,4]
[365432683,1749667833524,-1429.66,0.00021369,4]
[365432684,1749667833534,-848.01,0.00021369,4]
[365432685,1749667833544,-460.0,0.00021369,4]
[365432686,1749667833556,-460.0,0.00021369,2]
[365432687,1749667833566,-460.0,0.00021369,4]
[365432688,1749667833577,-460.0,0.00021369,4]
[365432689,1749667833586,-505.56,0.00021369,4]
[365432690,1749667833596,-460.0,0.00021369,4]
[365432691,1749667833607,-717.02,0.00021369,4]
[365432693,1749667833616,-393.65473971,0.0002137,2]
[365432694,1749667833626,-1554.0,0.00021419,2]
[365432695,1749667833635,-500.0,0.00021424,2]
[365432697,1749667833645,-500.0,0.00021451,2]
[365432698,1749667833655,-1295.23165573,0.00021452,5]
[365432699,1749667833665,-195.33704988,0.00021479,2]
[365432701,1749667833675,-500.0,0.00021492,2]
[365432703,1749667833685,-500.0,0.00021492,2]
[365432705,1749667833696,-1554.0,0.00021507,2]
[365432707,1749667833706,-500.0,0.00021547,2]
[365432709,1749667833716,-500.0,0.00021554,2]
[365432711,1749667833726,-420.0,0.00021584,2]
[365432713,1749667833741,-1295.23165573,0.00021624,5]
[365432715,1749667833751,-500.0,0.00021642,2]
[365432717,1749667833762,-460.0,0.00021643,4]
[365432718,1749667833773,-586.49,0.00021643,4]
[365432719,1749667833783,-460.0,0.00021643,4]
[365432720,1749667833794,-460.0,0.00021643,4]
[365432721,1749667833803,-460.0,0.00021643,4]
[365432722,1749667833816,-1004.79,0.00021643,4]
[365432723,1749667833826,-460.0,0.00021643,4]
[365432724,1749667833838,-904.27,0.00021643,4]
[365432725,1749667833848,-460.0,0.00021643,4]
[365432726,1749667833858,-460.0,0.00021643,4]
[365432727,1749667833869,-424.79,0.00021643,4]
[365432728,1749667833879,-460.0,0.00021643,4]
[365432729,1749667833889,-460.0,0.00021643,4]
[365432730,1749667833899,-782.12,0.00021643,4]
[365432731,1749667833909,-1429.66,0.00021643,4]
[365432732,1749667833918,-848.01,0.00021643,4]
[365432733,1749667833929,-252.35,0.00021643,4]
[365432734,1749667833939,-460.0,0.00021643,2]
[365432735,1749667833950,-107.87346236,0.00021643,4]
[365432875,1749667840757,-520.52,0.00020229,2]
[365432876,1749667840766,-2770.25000001,0.0002053,6]
[365432877,1749667840811,-610.24555412,0.0002053,6]
[365433213,1749667846644,-298.9048219,0.00019543,2]
[365433215,1749667846654,-1149.22850097,0.0002053,6]
[365433217,1749667846664,-16000.0,0.00020737,2]
[365433219,1749667846673,-513.18,0.00021095,4]
[365433221,1749667846683,-449.02114961,0.00021095,4]
[365433223,1749667846693,-460.0,0.00021095,4]
[365433226,1749667846702,-1041.04,0.00021192,2]
[365433229,1749667846715,-513.18,0.00021369,4]
[365433232,1749667846724,-460.0,0.00021369,4]
[365433234,1749667846737,-352.12653764,0.00021643,4]
[365433236,1749667846746,-460.0,0.00021643,4]
[365433238,1749667846755,-41.31898988,0.00021643,4]
[365433484,1749669031677,-572.22055633,0.00018633,6]
[365433510,1749669032191,-311.6502641,0.00019011,2]
[365433511,1749669032201,-199.26988127,0.00019543,2]
[365433512,1749669032210,-3511.0,0.00020071,2]
[365433513,1749669032220,-245.54986939,0.000201,2]
[365433514,1749669032229,-300.0,0.00020556,2]
[365433515,1749669032239,-300.0,0.00020556,2]
[365433516,1749669032249,-6.20420525,0.00020556,2]
[365433517,1749669032267,-970.79579475,0.00020556,2]
[365433518,1749669032277,-15497.5198843,0.00020557,2]
[365433519,1749669032287,-444.7043481,0.00020557,2]
[365433520,1749669032297,-50000.0,0.00020882,2]
[365433521,1749669032306,-332.25277058,0.00020882,2]
[365433522,1749669032316,-231.534,0.00020982,2]
[365433523,1749669032326,-5000.0,0.00021066,2]
[365433524,1749669032335,-207.4,0.00021066,2]
[365433525,1749669032345,-171.19,0.00021095,4]
[365433526,1749669032355,-536.00729776,0.00021095,4]
[365433527,1749669032366,-460.0,0.00021095,4]
[365433528,1749669032376,-921.46,0.00021095,4]
[365433529,1749669032385,-460.0,0.00021095,4]
[365433530,1749669032395,-460.0,0.00021095,4]
[365433531,1749669032404,-791.23,0.00021095,4]
[365433532,1749669032414,-460.0,0.00021095,4]
[365433533,1749669032426,-460.0,0.00021095,4]
[365433534,1749669032436,-460.0,0.00021095,4]
[365433535,1749669032446,-293.83808169,0.00021095,4]
[365433536,1749669032536,-166.16191831,0.00021095,4]
[365433537,1749669032548,-684.36,0.00021095,4]
[365433538,1749669032563,-1250.95,0.00021095,4]
[365433539,1749669032572,-742.01,0.00021095,4]
[365433540,1749669032582,-460.0,0.00021095,2]
[365433541,1749669032591,-408.294213,0.00021095,4]
[365433662,1749669039955,-51.705787,0.00021095,4]
[365433664,1749669039965,-672.93,0.00021095,4]
[365433666,1749669039974,-475.02,0.00021095,4]
[365433668,1749669039983,-461.71,0.00021095,4]
[365433670,1749669039993,-460.0,0.00021095,4]
[365433672,1749669040002,-657.27,0.00021095,4]
[365433674,1749669040011,-460.0,0.00021095,4]
[365433676,1749669040021,-460.0,0.00021095,4]
[365433678,1749669040030,-301.364213,0.00021225,2]
[365434115,1749669305476,1200.0,0.00017999,2]
[365434117,1749669352050,-4200.0,0.00018,2]
[365434118,1749669352071,-5129.0,0.00018,2]
[365434119,1749669356113,5000.0,0.00018,2]
[365434120,1749669357292,-163.82220355,0.00018,2]
[365434121,1749669361878,-226.84863573,0.00018,2]
[365434122,1749669378772,17.12298419,0.00018,2]
[365434123,1749669378796,172.43873233,0.00018,2]
[365434124,1749669381032,-259.51324761,0.00018,2]
[365434125,1749669385605,-254.49744474,0.00018,2]
[365434126,1749669386544,5000.0,0.00018,2]
[365434128,1749669387870,-444.73057202,0.00018,2]
[365434129,1749669392162,-309.45334445,0.00018,2]
[365434130,1749669395008,433.930055,0.00013699,2]
[365434131,1749669395042,-163.484949,0.00018,2]
[365434132,1749669397441,-371.3766681,0.00018,2]
[365434133,1749669399775,-582.2729348,0.00018,2]
[365434134,1749669484470,197.96427924,0.00017865,2]
[365434137,1749669933958,-1100.0,0.00018805,2]
[365434160,1749670106127,2071.73493125,0.000176,2]
[365434161,1749670115895,2265.20458006,0.00017,2]
[365434165,1749670142300,300.0,0.00017999,2]
[365434169,1749670150804,2116.05842212,0.00018,2]
[365434170,1749670150829,666.43787085,0.00018,2]
[365434171,1749670151517,-154.00870972,0.00018,2]
[365434173,1749670157260,-203.01044608,0.00018,2]
[365434174,1749670159076,-163.37215916,0.00018,2]
[365434175,1749670166046,-258.83449758,0.00018,2]
[365434176,1749670168258,-241.67029048,0.00018,2]
[365434180,1749670172803,-388.00765771,0.00018,2]
[365434181,1749670176684,-318.02843921,0.00018,2]
[365434182,1749670180788,-224.536575,0.00018,2]
[365434183,1749670182533,-279.3271352,0.00018,2]
[365434184,1749670184258,-163.74806093,0.00018,2]
[365434185,1749670189830,-346.50026447,0.00018,2]
[365434186,1749670192164,-500.0,0.00018,2]
[365434190,1749670198831,-237.62205689,0.00018,2]
[365434191,1749670202442,300.0,0.00017999,2]
[365434192,1749670203418,300.0,0.00017999,2]
[365434193,1749670206594,-278.37449426,0.00018,2]
[365434194,1749670208313,-170.91839727,0.00018,2]
[365434199,1749670213066,-153.95114488,0.00018,2]
[365434200,1749670214779,-204.76240816,0.00018,2]
[365434201,1749670221737,-285.19929943,0.00018,2]
[365434202,1749670223481,-263.39421964,0.00018,2]
[365434203,1749670227096,-433.35779645,0.00018,2]
[365434204,1749670229201,-173.0428648,0.00018,2]
[365434245,1749670232085,-949.94482823,0.00018,2]
[365434247,1749670232097,-1346.76538087,0.00018,2]
[365434248,1749670232615,-158.96908279,0.00018,2]
[365434319,1749670238157,-412.45762094,0.00018,2]
[365434321,1749670238167,-3061.66020574,0.00018,2]
[365434357,1749670238712,-311.69021767,0.00018,2]
[365434554,1749670241575,-1449.66763464,0.00018,2]